Workbook

Sheet Лист1

Sheet Page1
Q1: Утверждаю
A2: Начальник МКУ " Управление образования Муслюмовского муниципального района" | Q2: Руководитель ОО ________________________________________
A3: Р.Т. Демидов________________________ | Q3: _________________
A4: ЦИКЛИЧНОЕ ДЕСЯТИДНЕВНОЕ МЕНЮ ДЛЯ ОРГАНИЗАЦИИ ПИТАНИЯ ДЕТЕЙ В ВОЗРАСТЕ ОТ 1.5 ДО 3 ЛЕТ, ПОСЕЩАЮЩИХ ДОШКОЛЬНЫЕ ОБРАЗОВАТЕЛЬНЫЕ УЧРЕЖДЕНИЯ МУСЛЮМОВСКОГО МУНИЦИПАЛЬНОГО РАЙОНА
A5: 1 день
A6: Прием пищи, наименование блюда | L6: Масса порции | O6: Пищевые вещества | U6: Энергети-ческая ценность, ккал | X6: Витамины | AD6: Минеральные вещества | AH6: № рецеп-туры | AI6: Сборник рецептур
O7: Белки, г | Q7: Жиры, г | S7: Углеводы, г | X7: В1, мг | Z7: С, мг | AA7: А, мг | AC7: E, мг | AD7: Са, мг | AE7: Mg, мг | AF7: Р, мг | AG7: Fе, мг
A8: Завтрак
A9: МАСЛО (ПОРЦИЯМИ) | L9: 5 | O9: 0 | Q9: 4.1 | S9: 0 | U9: 37.4 | X9: 0 | Z9: 0 | AA9: 0 | AC9: 0.1 | AD9: 0.6 | AE9: 0 | AF9: 1 | AG9: 0 | AH9: 13 | AI9: 2008
A10: ЧАЙ ПОЛУСЛАДКИЙ | L10: 150 | O10: 0 | Q10: 0 | S10: 6.9 | U10: 27.6 | X10: 0 | Z10: 0 | AA10: 0 | AC10: 0 | AD10: 7.2 | AE10: 2.2 | AF10: 1.4 | AG10: 0.2 | AH10: 392 | AI10: 2012
A11: КАША ЯЧНЕВАЯ | L11: 150 | O11: 4.1 | Q11: 5.1 | S11: 21.9 | U11: 149.4 | X11: 0.1 | Z11: 0.2 | AA11: 0 | AC11: 0.1 | AD11: 64.7 | AE11: 19.1 | AF11: 124.3 | AG11: 0.5 | AH11: 418 | AI11: 2012
A12: БАТОН НАРЕЗНОЙ ОБОГАЩЕННЫЙ | L12: 35 | O12: 2.6 | Q12: 1 | S12: 18 | U12: 91.7 | X12: 0 | Z12: 0 | AA12: 0 | AC12: 0 | AD12: 6.7 | AE12: 4.6 | AF12: 22.8 | AG12: 0.4 | AH12: к/к | AI12: к/к
A13: Итого за прием пищи: | O13: 6.7 | Q13: 10.2 | S13: 46.8 | U13: 306.1 | X13: 0.1 | Z13: 0.2 | AA13: 0.0 | AC13: 1.2 | AD13: 79.2 | AE13: 25.9 | AF13: 149.5 | AG13: 1.1
A14: II Завтрак
A15: КЕФИР\РЯЖЕНКА | L15: 150 | O15: 4.3 | Q15: 3.7 | S15: 5.8 | U15: 77.1 | X15: 0.1 | Z15: 0.4 | AA15: 0 | AC15: 0.1 | AD15: 153 | AE15: 16.8 | AF15: 114 | AG15: 0.2 | AH15: 401 | AI15: 2012
A16: ПЕЧЕНЬЕ | L16: 20 | O16: 1.5 | Q16: 2 | S16: 14.9 | U16: 83.4 | X16: 0 | Z16: 0 | AA16: 0 | AC16: 0 | AD16: 5.8 | AE16: 4 | AF16: 18 | AG16: 0.4 | AH16: к/к | AI16: к/к
A17: Итого за прием пищи: | O17: 5.8 | Q17: 5.7 | S17: 20.7 | U17: 160.5 | X17: 0.1 | Z17: 0.4 | AA17: 0 | AC17: 0.1 | AD17: 158.8 | AE17: 20.8 | AF17: 132 | AG17: 0.6
A18: Обед
A19: САЛАТ ИЗ БЕЛОКОЧАННОЙ КАПУСТЫ | L19: 40 | O19: 0.8 | Q19: 1.9 | S19: 4.1 | U19: 37.3 | X19: 0 | Z19: 6 | AA19: 0.1 | AC19: 0.8 | AD19: 19.2 | AE19: 7.1 | AF19: 14.2 | AG19: 0.4 | AI19: 2012
A20: СУП С МАКАРОННЫМИ ИЗДЕЛИЯМИ | L20: 150 | O20: 6.6 | Q20: 5.9 | S20: 12.1 | U20: 126.4 | X20: 0.1 | Z20: 3.9 | AA20: 0.1 | AC20: 0.8 | AD20: 15.8 | AE20: 18.7 | AF20: 73.9 | AG20: 1.4 | AH20: 82 | AI20: 2012
A21: ПЛОВ | L21: 150 | O21: 8.8 | Q21: 10.4 | S21: 26.1 | U21: 233.2 | X21: 0 | Z21: 1 | AA21: 0.2 | AC21: 2.6 | AD21: 14.2 | AE21: 26.2 | AF21: 106.7 | AG21: 1.3 | AH21: 265 | AI21: 2008
A22: ХЛЕБ ПШЕНИЧНЫЙ | L22: 35 | O22: 2.7 | Q22: 0.2 | S22: 17.6 | U22: 82.9 | X22: 0.1 | Z22: 0 | AA22: 0 | AC22: 0.7 | AD22: 8.1 | AE22: 11.6 | AF22: 29.4 | AG22: 0.7
A23: КОМПОТ ИЗ СМЕСИ СУХОФРУКТОВ и ЯБЛОК С ВИТАМИНОМ "С" | L23: 150 | O23: 0 | Q23: 0 | S23: 11.6 | U23: 46.5 | X23: 0 | Z23: 0 | AA23: 0 | AC23: 0 | AD23: 6.1 | AE23: 1.4 | AF23: 0 | AG23: 0 | AH23: к/к | AI23: к/к
A24: Итого за прием пищи: | O24: 18.9 | Q24: 18.4 | S24: 71.5 | U24: 526.3 | X24: 0.2 | Z24: 10.9 | AA24: 0.4 | AC24: 4.9 | AD24: 63.4 | AE24: 65 | AF24: 224.2 | AG24: 3.8
A25: Ужин
A26: КАРТОФЕЛЬ ОТВАРНОЙ | L26: 120 | O26: 3 | Q26: 3.7 | S26: 6.7 | U26: 73.2 | X26: 0 | Z26: 0.6 | AA26: 0 | AC26: 0 | AD26: 110.7 | AE26: 12.5 | AF26: 76.7 | AG26: 0.1 | AH26: 93 | AI26: 2012
A27: ПТИЦА ТУШЕНЯ | L27: 60 | O27: 7.6 | Q27: 7.7 | S27: 1.8 | U27: 106.4 | X27: 0 | Z27: 0.4 | AA27: 0.2 | AC27: 0.3 | AD27: 12.5 | AE27: 11.1 | AF27: 69 | AG27: 1 | AH27: 277 | AI27: 2012
A28: ХЛЕБ ПШЕНИЧНЫЙ | L28: 35 | O28: 2.7 | Q28: 0.2 | S28: 17.6 | U28: 82.9 | X28: 0.1 | Z28: 0 | AA28: 0 | AC28: 0.7 | AD28: 8.1 | AE28: 11.6 | AF28: 29.4 | AG28: 0.7
A29: КАКАО С МОЛОКОМ | L29: 150 | O29: 3.1 | Q29: 2.5 | S29: 12.3 | U29: 84.7 | X29: 0 | Z29: 0.5 | AA29: 0 | AC29: 0 | AD29: 98.9 | AE29: 18.6 | AF29: 78 | AG29: 0.5 | AH29: 397 | AI29: 2012
A30: ЯБЛОКО СВЕЖЕЕ | L30: 108 | O30: 0.4 | Q30: 0.4 | S30: 9.3 | U30: 44.7 | X30: 0 | Z30: 9.5 | AA30: 0 | AC30: 0.6 | AD30: 15.2 | AE30: 7.6 | AF30: 10.5 | AG30: 2.1 | AI30: 2008
A31: Итого за прием пищи: | O31: 16.8 | Q31: 14.5 | S31: 47.7 | U31: 391.9 | X31: 0.1 | Z31: 11 | AA31: 0.2 | AC31: 1.6 | AD31: 245.4 | AE31: 61.4 | AF31: 263.6 | AG31: 4.4
A32: Всего за день: | O32: =O31+O24+O17+O13 -> 48.2 | Q32: =Q31+Q24+Q17+Q13 -> 48.8 | S32: =S31+S24+S17+S13 -> 186.7 | U32: =U31+U24+U17+U13 -> 1384.8 | X32: 0.5 | Z32: =Z31+Z24+Z17+Z13 -> 22.5 | AA32: 0.6 | AC32: =+AC31+AA24 -> 2 | AD32: =AD31+AD24+AD17+AD13 -> 546.8 | AE32: =AE31+AE24+AE17+AE13 -> 173.1 | AF32: =AF31+AF24+AF17+AF13 -> 769.3 | AG32: =AG31+AG24+AG17+AG13 -> 9.9
A33: 2 день
A34: Прием пищи, наименование блюда | L34: Масса порции | O34: Пищевые вещества | U34: Энергети-ческая ценность, ккал | X34: Витамины | AD34: Минеральные вещества | AH34: № рецеп-туры | AI34: Сборник рецептур
O35: Белки, г | Q35: Жиры, г | S35: Углеводы, г | X35: В1, мг | Z35: С, мг | AA35: А, мг | AC35: E, мг | AD35: Са, мг | AE35: Mg, мг | AF35: Р, мг | AG35: Fе, мг
A36: Завтрак
A37: ГРЕНКИ С СЫРОМ | L37: 35 | O37: 3.4 | Q37: 4.4 | S37: 21.8 | U37: 140 | X37: 0 | Z37: 0 | AA37: 0 | AC37: 0.1 | AD37: 14.5 | AE37: 5.3 | AF37: 29.9 | AG37: 0.4 | AH37: 117 | AI37: 2012
A38: КАША ГЕРКУЛЕСОВАЯ | L38: 150 | O38: 6.3 | Q38: 8.7 | S38: 27.7 | U38: 215.3 | X38: 0.2 | Z38: 0.2 | AA38: 0 | AC38: 1.5 | AD38: 75.7 | AE38: 55.7 | AF38: 160 | AG38: 1.5 | AH38: 413 | AI38: 2012
A39: ЧАЙ С ЛИМОНОМ | L39: 150 | O39: 0 | Q39: 0 | S39: 7 | U39: 28.8 | X39: 0 | Z39: 0.6 | AA39: 0 | AC39: 0 | AD39: 8.5 | AE39: 2.6 | AF39: 2.1 | AG39: 0.2 | AH39: 393 | AI39: 2012
A40: Итого за прием пищи: | O40: 9.7 | Q40: 13.1 | S40: 56.5 | U40: 384.1 | X40: 0.2 | Z40: 0.8 | AA40: 0 | AC40: 1.6 | AD40: 98.7 | AE40: 63.6 | AF40: 192 | AG40: 2.1
A41: II Завтрак
A42: СОКИ ОВОЩНЫЕ, ФРУКТОВЫЕ И ЯГОДНЫЕ | L42: 200 | O42: 1 | Q42: 0,2 | S42: 19,6 | U42: 83,4 | X42: 0 | Z42: 1,6 | AA42: 0 | AC42: 0 | AD42: 12,6 | AE42: 7,2 | AF42: 12,6 | AG42: 2,5 | AH42: 399 | AI42: 2012
A43: Итого за прием пищи: | O43: 1 | Q43: 0,2 | S43: 19,6 | U43: 83,4 | X43: 0 | Z43: 1,6 | AA43: 0 | AC43: 0 | AD43: 12,6 | AE43: 7,2 | AF43: 12,6 | AG43: 2,5
A44: Обед
A45: ВИНЕГРЕТ ОВОЩНОЙ | L45: 40 | O45: 0.6 | Q45: 2.3 | S45: 3.3 | U45: 37.2 | X45: 0 | Z45: 1.6 | AA45: 0.1 | AC45: 1 | AD45: 13 | AE45: 7.7 | AF45: 16.9 | AG45: 0.4 | AH45: 45 | AI45: 2012
A46: ЩИ ИЗ СВЕЖЕЙ КАПУСТЫ | L46: 150 | O46: 6.2 | Q46: 7.2 | S46: 9.8 | U46: 129 | X46: 0.1 | Z46: 4 | AA46: 0.1 | AC46: 1.5 | AD46: 20.5 | AE46: 20 | AF46: 79 | AG46: 1.4 | AH46: 76 | AI46: 2012
A47: КАША ГРЕЧНЕВАЯ РАССЫПЧАТАЯ С ТОМАТНЫМ СОУСОМ | L47: 150/20 | O47: 6.81 | Q47: 5.52 | S47: 30.91 | U47: 200.56 | X47: 0.17 | Z47: 0 | AA47: 0.03 | AC47: 0.46 | AD47: 14.72 | AE47: 108.56 | AF47: 161.92 | AG47: 3.68 | AH47: 181 | AI47: 2008
A48: КОТЛЕТЫ | L48: 70 | O48: 11 | Q48: 12 | S48: 11 | U48: 194.6 | X48: 0 | Z48: 0 | AA48: 0 | AC48: 0.7 | AD48: 12.1 | AE48: 14.2 | AF48: 93.6 | AG48: 1.5 | AH48: 282 | AI48: 2012
A49: ХЛЕБ ПШЕНИЧНЫЙ | L49: 35 | O49: 2.7 | Q49: 0.2 | S49: 17.6 | U49: 82.9 | X49: 0.1 | Z49: 0 | AA49: 0 | AC49: 0.7 | AD49: 8.1 | AE49: 11.6 | AF49: 29.4 | AG49: 0.7
A50: НАПИТОК ИЗ СУХОФРУКТОВ И ЯБЛОК С ВИТАМИНОМ "С" | L50: 150 | O50: 0 | Q50: 0 | S50: 11.6 | U50: 46.5 | X50: 0 | Z50: 0 | AA50: 0 | AC50: 0 | AD50: 6.1 | AE50: 1.4 | AF50: 0 | AG50: 0 | AH50: к/к | AI50: к/к
A51: Итого за прием пищи: | O51: 27.31 | Q51: 27.22 | S51: 84.21 | U51: 690.76 | X51: 0.4 | Z51: 5.6 | AA51: 0.3 | AC51: 4.4 | AD51: 74.52 | AE51: 163.5 | AF51: 380.8 | AG51: 7.7
A52: Ужин
A53: ЗАПЕКАНКА ИЗ ТВОРОГА С СГУЩЕНЫМ МОЛОКОМ | L53: 100/30 | O53: 15.6 | Q53: 13.3 | S53: 42.1 | U53: 349.3 | X53: 0 | Z53: 0.4 | AA53: 0 | AC53: 1.8 | AD53: 207.5 | AE53: 27.5 | AF53: 212.8 | AG53: 0.7 | AH53: 239 | AI53: 2012
A54: ХЛЕБ ПШЕНИЧНЫЙ | L54: 35 | O54: 2.7 | Q54: 0.2 | S54: 17.6 | U54: 82.9 | X54: 0.1 | Z54: 0 | AA54: 0 | AC54: 0.7 | AD54: 8.1 | AE54: 11.6 | AF54: 29.4 | AG54: 0.7
A55: ЧАЙ ПОЛУСЛАДКИЙ | L55: 150 | O55: 2.5 | Q55: 2.2 | S55: 11.1 | U55: 74.7 | X55: 0 | Z55: 0.5 | AA55: 0 | AC55: 0 | AD55: 95.3 | AE55: 11.5 | AF55: 66.2 | AG55: 0.3 | AH55: 394 | AI55: 2012
A56: Итого за прием пищи: | O56: 18.1 | Q56: 15.5 | S56: 53.2 | U56: 424 | X56: 0 | Z56: 0.9 | AA56: 0.01 | AC56: 1.8 | AD56: 302.8 | AE56: 39 | AF56: 279 | AG56: 1
A57: Всего за день: | O57: =O56+O51+O43+O40 -> 56.11 | Q57: =Q56+Q51+Q43+Q40 -> 56.02 | S57: =S56+S51+S43+S40 -> 213.51 | U57: =U56+U51+U43+U40 -> 1582.26 | X57: =X51+X56+X43+X40 -> 0.6 | Z57: =Z56+Z51+Z43+Z40 -> 8.9 | AA57: =AA56+AA51 -> 0.31 | AC57: =AC56+AC51+AC40 -> 7.8 | AD57: =AD56+AD51+AD43+AD40 -> 488.62 | AE57: =AE56+AE51+AE43+AE40 -> 273.3 | AF57: =AF56+AF51+AF43+AF40 -> 864.4 | AG57: =AG56+AG51+AG43+AG40 -> 13.3
A58: 3 день
A59: Прием пищи, наименование блюда | L59: Масса порции | O59: Пищевые вещества | U59: Энергети-ческая ценность, ккал | X59: Витамины | AD59: Минеральные вещества | AH59: № рецеп-туры | AI59: Сборник рецептур
O60: Белки, г | Q60: Жиры, г | S60: Углеводы, г | X60: В1, мг | Z60: С, мг | AA60: А, мг | AC60: E, мг | AD60: Са, мг | AE60: Mg, мг | AF60: Р, мг | AG60: Fе, мг
A61: Завтрак
A62: МАСЛО (ПОРЦИЯМИ) | L62: 5 | O62: 0 | Q62: 4.1 | S62: 0 | U62: 37.4 | X62: 0 | Z62: 0 | AA62: 0 | AC62: 0.1 | AD62: 0.6 | AE62: 0 | AF62: 1 | AG62: 0 | AH62: 13 | AI62: 2008
A63: КАКАО С МОЛОКОМ | L63: 150 | O63: 3.1 | Q63: 2.5 | S63: 12.3 | U63: 84.7 | X63: 0 | Z63: 0.5 | AA63: 0 | AC63: 0 | AD63: 98.9 | AE63: 18.6 | AF63: 78 | AG63: 0.5 | AH63: 397 | AI63: 2012
A64: БАТОН НАРЕЗОЙ ОБОГАЩЕННЫЙ | L64: 35 | O64: 2.6 | Q64: 1 | S64: 18 | U64: 91.7 | X64: 0 | Z64: 0 | AA64: 0 | AC64: 0 | AD64: 6.7 | AE64: 4.6 | AF64: 22.8 | AG64: 0.4 | AH64: к/к | AI64: к/к
A65: КАША ПШЕНИЧНАЯ МОЛОЧНАЯ ЖИДКАЯ | L65: 150 | O65: 5.5 | Q65: 5.2 | S65: 26.2 | U65: 174.6 | X65: 0.1 | Z65: 0.4 | AA65: 0 | AC65: 0.1 | AD65: 92.9 | AE65: 25.3 | AF65: 126.3 | AG65: 1.3 | AH65: 189 | AI65: 2008
A66: Итого за прием пищи: | O66: 11.2 | Q66: 12.8 | S66: 56.5 | U66: 388.4 | X66: 0.1 | Z66: 0.9 | AA66: 0 | AC66: 0.2 | AD66: 199.1 | AE66: 48.5 | AF66: 228.1 | AG66: 2.2
A67: II Завтрак
A68: ПЕЧЕНЬЕ | L68: 20 | O68: 1.5 | Q68: 2 | S68: 14.9 | U68: 83.4 | X68: 0 | Z68: 0 | AA68: 0 | AC68: 0 | AD68: 5.8 | AE68: 4 | AF68: 18 | AG68: 0.4 | AH68: к/к | AI68: к/к
A69: КЕФИР\РЯЖЕНКА, | L69: 150 | O69: 0 | Q69: 0 | S69: 0 | U69: 0 | X69: 0 | Z69: 0 | AA69: 0 | AC69: 0 | AD69: 0 | AE69: 0 | AF69: 0 | AG69: 0 | AH69: 401 | AI69: 2012
A70: Итого за прием пищи: | O70: 1.5 | Q70: 2 | S70: 14.9 | U70: 83.4 | X70: 0 | Z70: 0 | AA70: 0 | AC70: 0 | AD70: 5.8 | AE70: 4 | AF70: 18 | AG70: 0.4
A71: Обед
A72: САЛАТ ВИТАМИННЫЙ | L72: 40 | O72: 0.5 | Q72: 1.3 | S72: 3.6 | U72: 28.4 | X72: 0 | Z72: 4.1 | AA72: 0.2 | AC72: 0.6 | AD72: 14.4 | AE72: 5.9 | AF72: 10.1 | AG72: 0.5 | AH72: 41 | AI72: 2008
A73: РАССОЛЬНИК ЛЕНИНГРАДСКИЙ | L73: 150 | O73: 5.2 | Q73: 7.1 | S73: 5.8 | U73: 106.9 | X73: 0 | Z73: 0 | AA73: 0 | AC73: 1.4 | AD73: 10.7 | AE73: 8.8 | AF73: 48.2 | AG73: 0.7 | AH73: 402 | AI73: 2012
A74: ПЮРЕ КАРТОФЕЛЬНОЕ | L74: 120 | O74: 2.5 | Q74: 4.3 | S74: 17.1 | U74: 116.5 | X74: 0.1 | Z74: 8.3 | AA74: 0 | AC74: 0.2 | AD74: 28.1 | AE74: 23.2 | AF74: 67.2 | AG74: 0.9 | AH74: 321 | AI74: 2012
A75: СУФЛЕ КУРИНОЕ | L75: 50 | O75: 7.3 | Q75: 7.8 | S75: 2.8 | U75: 111.4 | X75: 0 | Z75: 0.4 | AA75: 0.2 | AC75: 0.4 | AD75: 17.2 | AE75: 12.6 | AF75: 68.8 | AG75: 1 | AH75: 277 | AI75: 2012
A76: ХЛЕБ ПШЕНИЧНЫЙ | L76: 35 | O76: 2.7 | Q76: 0.2 | S76: 17.6 | U76: 82.9 | X76: 0.1 | Z76: 0 | AA76: 0 | AC76: 0.7 | AD76: 8.1 | AE76: 11.6 | AF76: 29.4 | AG76: 0.7
A77: КОМПОТ ИЗ СМЕСИ СУХОФРУКТОВ И ЯБЛОК С ВИТАМИНОМ "С" | L77: 150 | O77: 0 | Q77: 0 | S77: 11.6 | U77: 46.5 | X77: 0 | Z77: 0 | AA77: 0 | AC77: 0 | AD77: 6.1 | AE77: 1.4 | AF77: 0 | AG77: 0 | AH77: к/к | AI77: к/к
A78: Итого за прием пищи: | O78: 18.2 | Q78: 20.7 | S78: 58.5 | U78: 549.4 | X78: 0.2 | Z78: 12.8 | AA78: 0.4 | AC78: 3.3 | AD78: 84.6 | AE78: 63.5 | AF78: 223.7 | AG78: 3.8
A79: Ужин
A80: КАША РИСОВАЯ | L80: 150 | O80: 8.1 | Q80: 8.4 | S80: 16.9 | U80: 176.7 | X80: 0.1 | Z80: 8.6 | AA80: 0 | AC80: 0.4 | AD80: 17.8 | AE80: 28.4 | AF80: 110.2 | AG80: 1.7 | AH80: 276 | AI80: 2012
A81: ЧАЙ С САХАРОМ | L81: 150 | O81: 0 | Q81: 0 | S81: 6.9 | U81: 27.6 | X81: 0 | Z81: 0 | AA81: 0 | AC81: 0 | AD81: 7.2 | AE81: 2.2 | AF81: 1.4 | AG81: 0.2 | AH81: 392 | AI81: 2012
A82: ОЛАДЬИ | L82: 65 | O82: 2.7 | Q82: 0.2 | S82: 17.6 | U82: 82.9 | X82: 0.1 | Z82: 0 | AA82: 0 | AC82: 0.7 | AD82: 8.1 | AE82: 11.6 | AF82: 29.4 | AG82: 0.7
A83: ГРУША | L83: 108 | O83: 0.4 | Q83: 0.3 | S83: 10 | U83: 45.7 | X83: 0 | Z83: 4.9 | AA83: 0 | AC83: 0.3 | AD83: 18.5 | AE83: 11.7 | AF83: 15.6 | AG83: 1.9 | AI83: 2008
A84: Итого за прием пищи: | O84: 11.2 | Q84: 8.9 | S84: 51.4 | U84: 332.9 | X84: 0.2 | Z84: 13.5 | AA84: 0 | AC84: 1.4 | AD84: 51.6 | AE84: 53.9 | AF84: 156.6 | AG84: 4.5
A85: Всего за день: | O85: =O84+O78+O70+O66 -> 42.1 | Q85: =Q84+Q78+Q70+Q66 -> 44.4 | S85: =S84+S78+S70+S66 -> 181.3 | U85: =U84+U78+U70+U66 -> 1354.1 | X85: 0.5 | Z85: =Z84+Z78+Z66 -> 27.2 | AA85: 0.4 | AC85: =AC84+AC78+AC66 -> 4.9 | AD85: =AD84+AD78+AD70+AD66 -> 341.1 | AE85: =AE84+AE78+AE70+AE66 -> 169.9 | AF85: =AF84+AF78+AF70+AF66 -> 626.4 | AG85: =AG84+AG78+AG70+AG66 -> 10.9
A86: 4 день
A87: Прием пищи, наименование блюда | L87: Масса порции | O87: Пищевые вещества | U87: Энергети-ческая ценность, ккал | X87: Витамины | AD87: Минеральные вещества | AH87: № рецеп-туры | AI87: Сборник рецептур
O88: Белки, г | Q88: Жиры, г | S88: Углеводы, г | X88: В1, мг | Z88: С, мг | AA88: А, мг | AC88: E, мг | AD88: Са, мг | AE88: Mg, мг | AF88: Р, мг | AG88: Fе, мг
A89: Завтрак
A90: СЫР (ПОРЦИЯМИ) | L90: 10 | O90: 2.3 | Q90: 3 | S90: 0 | U90: 36.4 | X90: 0 | Z90: 0.1 | AA90: 0 | AC90: 0 | AD90: 88 | AE90: 3.5 | AF90: 50 | AG90: 0.1 | AH90: 14 | AI90: 2008
A91: ЧАЙ С МОЛОКОМ | L91: 150 | O91: 2.2 | Q91: 1.8 | S91: 13.2 | U91: 78.4 | X91: 0 | Z91: 0.4 | AA91: 0 | AC91: 0 | AD91: 81.6 | AE91: 10.9 | AF91: 57.7 | AG91: 0.5 | AH91: к/к | AI91: к/к
A92: БАТОН НАРЕЗОЙ ОБОГАЩЕННЫЙ | L92: 35 | O92: 2.6 | Q92: 1 | S92: 18 | U92: 91.7 | X92: 0 | Z92: 0 | AA92: 0 | AC92: 0 | AD92: 6.7 | AE92: 4.6 | AF92: 22.8 | AG92: 0.4 | AH92: к/к | AI92: к/к
A93: КАША ПШЕННАЯ | L93: 150 | O93: 3.8 | Q93: 3.9 | S93: 23 | U93: 141.9 | X93: 0.1 | Z93: 0 | AA93: 0 | AC93: 1 | AD93: 16.1 | AE93: 26.4 | AF93: 72 | AG93: 0.9 | AH93: 417 | AI93: 2012
A94: Итого за прием пищи: | O94: 10.9 | Q94: 9.7 | S94: 54.2 | U94: 348.4 | X94: 0.1 | Z94: 0.5 | AA94: 0 | AC94: 1 | AD94: 192.4 | AE94: 45.4 | AF94: 202.5 | AG94: 1.9
A95: II Завтрак
A96: СОКИ ОВОЩНЫЕ, ФРУКТОВЫЕ И ЯГОДНЫЕ | L96: 200 | O96: 1 | Q96: 0.2 | S96: 19.6 | U96: 83.4 | X96: 0 | Z96: 1.6 | AA96: 0 | AC96: 0 | AD96: 12.6 | AE96: 7.2 | AF96: 12.6 | AG96: 2.5 | AH96: 399 | AI96: 2012
A97: Итого за прием пищи: | O97: 1 | Q97: 0.2 | S97: 19.6 | U97: 83.4 | X97: 0 | Z97: 1.6 | AA97: 0 | AC97: 0 | AD97: 12.6 | AE97: 7.2 | AF97: 12.6 | AG97: 2.5
A98: Обед
A99: САЛАТ "СТЕПНОЙ" ИЗ РАЗНЫХ ОВОЩЕЙ | L99: 40 | O99: 0.6 | Q99: 4.0 | S99: 3.2 | U99: 52.1 | X99: 0 | Z99: 2.6 | AA99: 0.2 | AC99: 1.9 | AD99: 13.3 | AE99: 8.5 | AF99: 19 | AG99: 0.3 | AH99: 30 | AI99: 2008
A100: СУП С КРУПОЙ (РИС) | L100: 150 | O100: 6.2 | Q100: 7.2 | S100: 9.8 | U100: 129 | X100: 0.1 | Z100: 4 | AA100: 0.1 | AC100: 1.5 | AD100: 20.5 | AE100: 20 | AF100: 79 | AG100: 1.4 | AH100: 76 | AI100: 2012
A101: МАКАРОННЫЕ ИЗДЕЛИЯ ОТВАРНЫЕ | L101: 120 | O101: 4.5 | Q101: 0.5 | S101: 28.7 | U101: 137.7 | X101: 0.1 | Z101: 0 | AA101: 0 | AC101: 0.9 | AD101: 22 | AE101: 7.3 | AF101: 35.3 | AG101: 0.8 | AH101: 204 | AI101: 2012
A102: КОТЛЕТЫ РУБЛЕННЫЕ ИЗ ПТИЦЫ | L102: 70 | O102: 11.3 | Q102: 11.6 | S102: 11.9 | U102: 197 | X102: 0 | Z102: 0.5 | AA102: 0 | AC102: 0.5 | AD102: 33.8 | AE102: 15.4 | AF102: 105.6 | AG102: 1.1 | AH102: 305 | AI102: 2012
A103: ХЛЕБ ПШЕНИЧНЫЙ | L103: 35 | O103: 2.7 | Q103: 0.2 | S103: 17.6 | U103: 82.9 | X103: 0.1 | Z103: 0 | AA103: 0 | AC103: 0.7 | AD103: 8.1 | AE103: 11.6 | AF103: 29.4 | AG103: 0.7
A104: НАПИТОК ИЗ СУХОФРУКТОВ С ВИТАМИНОМ "С" | L104: 150 | O104: 0 | Q104: 0.0 | S104: 11.6 | U104: 46.5 | X104: 0 | Z104: 0 | AA104: 0 | AC104: 0 | AD104: 6.1 | AE104: 1.4 | AF104: 0 | AG104: 0 | AH104: к/к | AI104: к/к
A105: Итого за прием пищи: | O105: 25.3 | Q105: 23.5 | S105: 82.8 | U105: 645.2 | X105: 0.3 | Z105: 7.1 | AA105: 0.3 | AC105: 5.5 | AD105: 103.8 | AE105: 64.2 | AF105: 268.3 | AG105: 4.3
A106: Ужин
A107: КАША МАННАЯ | L107: 150 | O107: 4.2 | Q107: 4.1 | S107: 23.6 | U107: 147.3 | X107: 0 | Z107: 0.2 | AA107: 0 | AC107: 0.9 | AD107: 46.6 | AE107: 10 | AF107: 50 | AG107: 0.3 | AH107: 416 | AI107: 2012
A108: ПИРОЖКИ С ПОВИДЛОМ | L108: 75 | O108: 4 | Q108: 1.5 | S108: 46.4 | U108: 214 | X108: 0.07 | Z108: 12 | AA108: 0.01 | AC108: 0.6 | AD108: 15 | AE108: 9 | AF108: 37 | AG108: 0 | AH108: 453 | AI108: 2008
A109: ЧАЙ ПОЛУСЛАДКИЙ | L109: 150 | O109: 2.5 | Q109: 2.2 | S109: 11.1 | U109: 74.7 | X109: 0 | Z109: 0.5 | AA109: 0 | AC109: 0 | AD109: 95.3 | AE109: 11.5 | AF109: 66.2 | AG109: 0.3 | AH109: 394 | AI109: 2012
A110: ЯБЛОКО | L110: 108 | O110: 0.4 | Q110: 0.4 | S110: 9.3 | U110: 44.7 | X110: 0 | Z110: 9.5 | AA110: 0 | AC110: 0.6 | AD110: 15.2 | AE110: 7.6 | AF110: 10.5 | AG110: 2.1 | AI110: 2008
A111: Итого за прием пищи: | O111: 11.1 | Q111: 8.2 | S111: 90.4 | U111: 480.7 | X111: 0.1 | Z111: 22.2 | AA111: 0 | AC111: 2.1 | AD111: 172.1 | AE111: 38.1 | AF111: 163.7 | AG111: 2.7
A112: Всего за день: | O112: =O111+O105+O97+O94 -> 48.3 | Q112: =Q111+Q105+Q97+Q94 -> 41.6 | S112: =S111+S105+S97+S94 -> 247 | U112: =U111+U105+U97+U94 -> 1557.7 | X112: =X111+X105+X97+X94 -> 0.5 | Z112: =Z111+Z105+Z97+Z94 -> 31.4 | AA112: =AA111+AA105 -> 0.3 | AC112: =AC111+AC105+AC94 -> 8.6 | AD112: =AD111+AD105+AD97+AD94 -> 480.9 | AE112: =AE111+AE105+AE97+AE94 -> 154.9 | AF112: =AF111+AF105+AF97+AF94 -> 647.1 | AG112: =AG111+AG105+AG97+AG94 -> 11.4
A113: 5 день
A114: Прием пищи, наименование блюда | L114: Масса порции | O114: Пищевые вещества | U114: Энергети-ческая ценность, ккал | X114: Витамины | AD114: Минеральные вещества | AH114: № рецеп-туры | AI114: Сборник рецептур
O115: Белки, г | Q115: Жиры, г | S115: Углеводы, г | X115: В1, мг | Z115: С, мг | AA115: А, мг | AC115: E, мг | AD115: Са, мг | AE115: Mg, мг | AF115: Р, мг | AG115: Fе, мг
A116: Завтрак
A117: МАСЛО (ПОРЦИЯМИ) | L117: 5 | O117: 0 | Q117: 4.1 | S117: 0 | U117: 37.4 | X117: 0 | Z117: 0 | AA117: 0 | AC117: 0.1 | AD117: 0.6 | AE117: 0 | AF117: 1 | AG117: 0 | AH117: 13 | AI117: 2008
A118: КАКАО С МОЛОКОМ | L118: 150 | O118: 3.1 | Q118: 2.5 | S118: 12.3 | U118: 84.7 | X118: 0 | Z118: 0.5 | AA118: 0 | AC118: 0 | AD118: 98.9 | AE118: 18.6 | AF118: 78 | AG118: 0.5 | AH118: 397 | AI118: 2012
A119: ОМЛЕТ НАТУРАЛЬНЫЙ | L119: 200 | O119: 19 | Q119: 29.2 | S119: 3.4 | U119: 352.4 | X119: 0.1 | Z119: 0.2 | AA119: 0.5 | AC119: 3.1 | AD119: 126.1 | AE119: 21.1 | AF119: 283.3 | AG119: 3.2 | AH119: 215 | AI119: 2012
A120: БАТОН НАРЕЗНОЙ ОБОГАЩЕННЫЙ | L120: 35 | O120: 2.6 | Q120: 1 | S120: 18 | U120: 91.7 | X120: 0 | Z120: 0 | AA120: 0 | AC120: 0 | AD120: 6.7 | AE120: 4.6 | AF120: 22.8 | AG120: 0.4 | AH120: к/к | AI120: к/к
A121: Итого за прием пищи: | O121: 24.7 | Q121: 36.8 | S121: 33.7 | U121: 566.2 | X121: 0.1 | Z121: 0.7 | AA121: 0.5 | AC121: 3.2 | AD121: 232.3 | AE121: 44.3 | AF121: 385.1 | AG121: 4.1
A122: II Завтрак
A123: КИСЕЛЬ ПЛОДОВО-ЯГОДНЫЙ ИЗ КОНЦЕНТРАТА | L123: 150 | O123: 0 | Q123: 0 | S123: 21.2 | U123: 84.6 | X123: 0 | Z123: 0 | AA123: 0 | AC123: 0 | AD123: 8.8 | AE123: 1.5 | AF123: 3.2 | AG123: 0 | AH123: 411 | AI123: 2008
A124: ВАФЛИ | L124: 20 | O124: 0.6 | Q124: 0.7 | S124: 15.5 | U124: 70.8 | X124: 0 | Z124: 0 | AA124: 0 | AC124: 0 | AD124: 3.2 | AE124: 2 | AF124: 7.2 | AG124: 0.3 | AI124: 2008
A125: Итого за прием пищи: | O125: 0.6 | Q125: 0.7 | S125: 36.7 | U125: 155.4 | X125: 0 | Z125: 0 | AA125: 0 | AC125: 0 | AD125: 12 | AE125: 3.5 | AF125: 10.4 | AG125: 0.3
A126: Обед
A127: САЛАТ ИЗ МОРКОВИ | L127: 40 | O127: 0.3 | Q127: 1.3 | S127: 2.7 | U127: 24.6 | X127: 0 | Z127: 0.8 | AA127: 0.4 | AC127: 0.7 | AD127: 11 | AE127: 7.7 | AF127: 11.3 | AG127: 0.4 | AH127: к/к | AI127: к/к
A128: СУП С ФРИКАДЕЛЬКАМИ | L128: 150 | O128: 6.6 | Q128: 5.9 | S128: 12.1 | U128: 126.4 | X128: 0.1 | Z128: 3.9 | AA128: 0.1 | AC128: 0.8 | AD128: 15.8 | AE128: 18.7 | AF128: 73.9 | AG128: 1.4 | AH128: 82 | AI128: 2012
A129: КАПУСТА ТУШЕНЯ С МЯСОМ | L129: 150 | O129: 7.6 | Q129: 7.1 | S129: 1.3 | U129: 101 | X129: 0 | Z129: 0 | AA129: 0 | AC129: 0.2 | AD129: 8.4 | AE129: 7.9 | AF129: 64.8 | AG129: 0.9 | AH129: 278 | AI129: 2012
A130: ХЛЕБ ПШЕНИЧНЫЙ | L130: 35 | O130: 2.7 | Q130: 0.2 | S130: 17.6 | U130: 82.9 | X130: 0.1 | Z130: 0 | AA130: 0 | AC130: 0.7 | AD130: 8.1 | AE130: 11.6 | AF130: 29.4 | AG130: 0.7
A131: КОМПОТ ИЗ СМЕСИ СУХОФРУКТОВ И ЯБЛОК С ВИТАМИНОМ "С" | L131: 150 | O131: 0 | Q131: 0 | S131: 11.6 | U131: 46.5 | X131: 0 | Z131: 0 | AA131: 0 | AC131: 0 | AD131: 6.1 | AE131: 1.4 | AF131: 0 | AG131: 0 | AH131: к/к | AI131: к/к
A132: Итого за прием пищи: | O132: 24.1 | Q132: 20 | S132: 76.2 | U132: 582 | X132: 0.3 | Z132: 4.7 | AA132: 0.5 | AC132: 2.9 | AD132: 64.12 | AE132: 155.86 | AF132: 341.32 | AG132: 7.08
A133: Ужин
A134: КАРТОФЕЛЬНЫЕ КОТЛЕТЫ С СМЕТАННЫМ СОУСОМ | L134: 150/30 | O134: 5.5 | Q134: 7.8 | S134: 34.2 | U134: 229.8 | X134: 0.1 | Z134: 0 | AA134: 0 | AC134: 1.4 | AD134: 14.9 | AE134: 8.5 | AF134: 47.9 | AG134: 0.6 | AH134: 449 | AI134: 2012
A135: ТУШЕНАЯ КАПУСТА С МЯСОМ | L135: 150 | O135: 12.2 | Q135: 12.6 | S135: 25.1 | U135: 262.1 | X135: 0.2 | Z135: 11.9 | AA135: 0 | AC135: 0.5 | AD135: 20.8 | AE135: 40.3 | AF135: 158.3 | AG135: 2.5 | AH135: 291 | AI135: 2012
A136: ЧАЙ С ЛИМОНОМ | L136: 150 | O136: 0 | Q136: 0 | S136: 6.9 | U136: 27.6 | X136: 0 | Z136: 0 | AA136: 0 | AC136: 0 | AD136: 7.2 | AE136: 2.2 | AF136: 1.4 | AG136: 0.2 | AH136: 392 | AI136: 2012
A137: БАНАН | L137: 108 | O137: 1 | Q137: 0.3 | S137: 13.6 | U137: 62.2 | X137: 0 | Z137: 6.5 | AA137: 0 | AC137: 0 | AD137: 5.2 | AE137: 27.2 | AF137: 18.1 | AG137: 0.4 | AI137: 2008
A138: Итого за прием пищи: | O138: 18.7 | Q138: 20.7 | S138: 79.8 | U138: 581.7 | X138: 0.3 | Z138: 18.4 | AA138: 0 | AC138: 1.9 | AD138: 48.1 | AE138: 78.2 | AF138: 225.7 | AG138: 3.7
A139: Всего за день: | O139: =O138+O132+O125+O121 -> 68.1 | Q139: =Q138+Q132+Q125+Q121 -> 78.2 | S139: =S138+S132+S125+S121 -> 226.4 | U139: =U138+U132+U125+U121 -> 1885.3 | X139: =X138+X132+X121 -> 0.7 | Z139: =Z138+Z132+Z121 -> 23.8 | AA139: =AA138+AA132+AA121 -> 1 | AC139: =AC138+AC132+AC121 -> 8 | AD139: =AD138+AD132+AD125+AD121 -> 356.52 | AE139: =AE138+AE132+AE125+AE121 -> 281.86 | AF139: =AF138+AF132+AF125+AF121 -> 962.52 | AG139: =AG138+AG132+AG125+AG121 -> 15.18
A140: 6 день
A141: Прием пищи, наименование блюда | L141: Масса порции | O141: Пищевые вещества | U141: Энергети-ческая ценность, ккал | X141: Витамины | AD141: Минеральные вещества | AH141: № рецеп-туры | AI141: Сборник рецептур
O142: Белки, г | Q142: Жиры, г | S142: Углеводы, г | X142: В1, мг | Z142: С, мг | AA142: А, мг | AC142: E, мг | AD142: Са, мг | AE142: Mg, мг | AF142: Р, мг | AG142: Fе, мг
A143: Завтрак
A144: КАША МАННАЯ | L144: 150 | O144: 4.2 | Q144: 4.1 | S144: 23.6 | U144: 147.3 | X144: 0 | Z144: 0.2 | AA144: 0 | AC144: 0.9 | AD144: 46.6 | AE144: 10 | AF144: 50 | AG144: 0.3 | AH144: 416 | AI144: 2012
A145: ЧАЙ С САХАРОМ | L145: 150 | O145: 0.1 | Q145: 0 | S145: 9.7 | U145: 39.1 | X145: 0 | Z145: 0 | AA145: 0 | AC145: 0 | AD145: 2.5 | AE145: 2 | AF145: 3.7 | AG145: 0.4 | AH145: к/к | AI145: к/к
A146: ХЛЕБ ПШЕНИЧНЫЙ | L146: 35 | O146: 2.7 | Q146: 0.2 | S146: 17.6 | U146: 82.9 | X146: 0.1 | Z146: 0 | AA146: 0 | AC146: 0.7 | AD146: 8.1 | AE146: 11.6 | AF146: 29.4 | AG146: 0.7
A147: Итого за прием пищи: | O147: 7 | Q147: 4.3 | S147: 50.9 | U147: 269.3 | X147: 0.1 | Z147: 0.2 | AA147: 0 | AC147: 1.6 | AD147: 57.2 | AE147: 23.6 | AF147: 83.1 | AG147: 1.4
A148: II Завтрак
A149: ЯБЛОКО | L149: 108 | O149: 0.4 | Q149: 0.4 | S149: 9.3 | U149: 44.7 | X149: 0 | Z149: 9.5 | AA149: 0 | AC149: 0.6 | AD149: 15.2 | AE149: 7.6 | AF149: 10.5 | AG149: 2.1 | AI149: 2008
A150: Итого за прием пищи: | O150: 0.4 | Q150: 0.4 | S150: 9.3 | U150: 44.7 | X150: 0 | Z150: 9.5 | AA150: 0 | AC150: 0.6 | AD150: 15.2 | AE150: 7.6 | AF150: 10.5 | AG150: 2.1
A151: Обед
A152: ЩИ ИЗ СВЕЖЕЙ КАПУСТЫ | L152: 150 | O152: 6 | Q152: 7 | S152: 3.9 | U152: 103 | X152: 0 | Z152: 8 | AA152: 0.1 | AC152: 1.4 | AD152: 33.4 | AE152: 15.3 | AF152: 59.9 | AG152: 1.2 | AH152: 66 | AI152: 2012
A153: ПЛОВ | L153: 150 | O153: 8.8 | Q153: 10.4 | S153: 26.1 | U153: 233.2 | X153: 0 | Z153: 1 | AA153: 0.2 | AC153: 2.6 | AD153: 14.2 | AE153: 26.2 | AF153: 106.7 | AG153: 1.3 | AH153: 265 | AI153: 2008
A154: ХЛЕБ ПШЕНИЧНЫЙ | L154: 35 | O154: 2.7 | Q154: 0.2 | S154: 17.6 | U154: 82.9 | X154: 0.1 | Z154: 0 | AA154: 0 | AC154: 0.7 | AD154: 8.1 | AE154: 11.6 | AF154: 29.4 | AG154: 0.7
A155: ЧАЙ С МОЛОКОМ | L155: 150 | O155: 2.5 | Q155: 2.2 | S155: 11.1 | U155: 74.7 | X155: 0 | Z155: 0.5 | AA155: 0 | AC155: 0 | AD155: 95.3 | AE155: 11.5 | AF155: 66.2 | AG155: 0.3 | AH155: 394 | AI155: 2012
A156: Итого за прием пищи: | O156: 34.11 | Q156: 33.12 | S156: 92.41 | U156: 805.76 | X156: 0.3 | Z156: 9.9 | AA156: 0.5 | AC156: 5.6 | AD156: 182.9 | AE156: 185.8 | AF156: 492.2 | AG156: 8.2
A157: Ужин
A158: СУП МОЛОЧНЫЙ С МАКАРОННЫМИ ИЗДЕЛИЯМИ | L158: 150 | O158: 3 | Q158: 3.7 | S158: 6.7 | U158: 73.2 | X158: 0 | Z158: 0.6 | AA158: 0 | AC158: 0 | AD158: 110.8 | AE158: 12.5 | AF158: 76.7 | AG158: 0.1 | AH158: 93 | AI158: 2012
A159: ХЛЕБ ПШЕНИЧНЫЙ | L159: 35 | O159: 2.7 | Q159: 0.2 | S159: 17.6 | U159: 82.9 | X159: 0.1 | Z159: 0 | AA159: 0 | AC159: 0.7 | AD159: 8.1 | AE159: 11.6 | AF159: 29.4 | AG159: 0.7
A160: ЧАЙ ПОЛУСЛАДКИЙ | L160: 150 | O160: 2.5 | Q160: 2.2 | S160: 11.1 | U160: 74.7 | X160: 0 | Z160: 0.5 | AA160: 0 | AC160: 0 | AD160: 95.3 | AE160: 11.5 | AF160: 66.2 | AG160: 0.3 | AH160: 394 | AI160: 2012
A161: ПЕЧЕНЬЕ | L161: 20 | O161: 1.5 | Q161: 2 | S161: 14.9 | U161: 83.4 | X161: 0 | Z161: 0 | AA161: 0 | AC161: 0 | AD161: 5.8 | AE161: 4 | AF161: 18 | AG161: 0.4 | AH161: к/к | AI161: к/к
A162: Итого за прием пищи: | O162: 9.7 | Q162: 8.1 | S162: 50.3 | U162: 314.2 | X162: 0.1 | Z162: 1.1 | AA162: 0 | AC162: 0.7 | AD162: 220 | AE162: 39.6 | AF162: 190.3 | AG162: 1.5
A163: Всего за день: | O163: =O162+O156+O150+O147 -> 51.21 | Q163: =Q162+Q156+Q150+Q147 -> 45.92 | S163: =S162+S156+S150+S147 -> 202.91 | U163: =U162+U156+U150+U147 -> 1433.96 | X163: =X162+X156+X147 -> 0.5 | Z163: =Z162+X156+X147 -> 1.5 | AA163: 0.5 | AC163: =AC162+AC156+AC150+AC147 -> 8.5 | AD163: =AD162+AD156+AD150+AD147 -> 475.3 | AE163: =AE162+AE156+AE150+AE147 -> 256.6 | AF163: =AF162+AF156+AF150+AF147 -> 776.1 | AG163: =AG162+AG156+AG150+AG147 -> 13.2
A164: 7 день
A165: Прием пищи, наименование блюда | L165: Масса порции | O165: Пищевые вещества | U165: Энергети-ческая ценность, ккал | X165: Витамины | AD165: Минеральные вещества | AH165: № рецеп-туры | AI165: Сборник рецептур
O166: Белки, г | Q166: Жиры, г | S166: Углеводы, г | X166: В1, мг | Z166: С, мг | AA166: А, мг | AC166: E, мг | AD166: Са, мг | AE166: Mg, мг | AF166: Р, мг | AG166: Fе, мг
A167: Завтрак
A168: КАША ГРЕЧНЕВАЯ МОЛОЧНАЯ ЖИДКАЯ С САХАРОМ | L168: 150 | O168: 5 | Q168: 6.8 | S168: 18 | U168: 154.3 | X168: 0.1 | Z168: 0.6 | AA168: 0 | AC168: 1.1 | AD168: 119.7 | AE168: 39.9 | AF168: 122.1 | AG168: 1.1 | AH168: к/к | AI168: к/к
A169: КАКАО С МОЛОКОМ | L169: 150 | O169: 4.4 | Q169: 3.7 | S169: 16.1 | U169: 115.9 | X169: 0.1 | Z169: 0.7 | AA169: 0 | AC169: 0 | AD169: 140.9 | AE169: 25.1 | AF169: 112.5 | AG169: 0.6 | AH169: к/к | AI169: к/к
A170: БАТОН НАРЕЗНОЙ ОБОГАЩЕННЫЙ | L170: 35 | O170: 2.6 | Q170: 1 | S170: 18 | U170: 91.7 | X170: 0 | Z170: 0 | AA170: 0 | AC170: 0 | AD170: 6.7 | AE170: 4.6 | AF170: 22.8 | AG170: 0.4 | AH170: к/к | AI170: к/к
A171: МАСЛО (ПОРЦИЯМИ) | L171: 5 | O171: 0 | Q171: 4.1 | S171: 0 | U171: 37.4 | X171: 0 | Z171: 0 | AA171: 0 | AC171: 0.1 | AD171: 0.6 | AE171: 0 | AF171: 1 | AG171: 0 | AI171: 2012
A172: Итого за прием пищи: | O172: 12 | Q172: 15.6 | S172: 52.1 | U172: 399.3 | X172: 0.2 | Z172: 1.3 | AA172: 0 | AC172: 1.2 | AD172: 267.9 | AE172: 69.6 | AF172: 258.4 | AG172: 2.1
A173: II Завтрак
A174: КИСЕЛЬ ПЛОДОВО-ЯГОДНЫЙ ИЗ КОНЦЕНТРАТА | L174: 150 | O174: 0 | Q174: 0 | S174: 21.2 | U174: 84.6 | X174: 0 | Z174: 0 | AA174: 0 | AC174: 0 | AD174: 8.8 | AE174: 1.5 | AF174: 3.2 | AG174: 0 | AH174: 411 | AI174: 2008
A175: ПЕЧЕНЬЕ | L175: 20 | O175: 0.6 | Q175: 0.7 | S175: 15.5 | U175: 70.8 | X175: 0 | Z175: 0 | AA175: 0 | AC175: 0 | AD175: 3.2 | AE175: 2 | AF175: 7.2 | AG175: 0.3 | AI175: 2008
A176: Итого за прием пищи: | O176: 0.6 | Q176: 0.7 | S176: 36.7 | U176: 155.4 | X176: 0 | Z176: 0 | AA176: 0 | AC176: 0 | AD176: 12 | AE176: 3.5 | AF176: 10.4 | AG176: 0.3
A177: Обед
A178: САЛАТ ИЗ ОТВАРНОЙ МОРКОВИ С ЯБЛОКОМ И РАСТИТЕЛЬНЫМ МАСЛОМ | L178: 40 | O178: 0.3 | Q178: 1.3 | S178: 2.7 | U178: 24.6 | X178: 0 | Z178: 0.8 | AA178: 0.4 | AC178: 0.7 | AD178: 11 | AE178: 7.7 | AF178: 11.3 | AG178: 0.4 | AH178: к/к | AI178: к/к
A179: СУП КАРТОФЕЛЬНЫЙ С БОБОВЫМИ | L179: 150 | O179: 6 | Q179: 7.2 | S179: 8.3 | U179: 121.7 | X179: 0 | Z179: 4.7 | AA179: 0.1 | AC179: 1.4 | AD179: 24.7 | AE179: 17.3 | AF179: 67.4 | AG179: 1.3 | AH179: 94 | AI179: 2008
A180: МАКАРОННЫЕ ИЗДЕЛИЯ ОТВАРНЫЕ | L180: 120 | O180: 2.5 | Q180: 4.3 | S180: 17.1 | U180: 116.5 | X180: 0.1 | Z180: 8.3 | AA180: 0 | AC180: 0.2 | AD180: 28.1 | AE180: 23.2 | AF180: 67.2 | AG180: 0.9 | AH180: 321 | AI180: 2012
A181: ТЕФТЕЛИ ИЗ ГОВЯДИНЫ С РИСОМ (ПАРОВЫЕ) | L181: 50/25 | O181: 7.75 | Q181: 8.9 | S181: 5.6 | U181: 133 | X181: 0.01 | Z181: 0.2 | AA181: 0.01 | AC181: 1.05 | AD181: 11 | AE181: 10.7 | AF181: 72 | AG181: 1.04 | AH181: 285 | AI181: 2008
A182: ХЛЕБ ПШЕНИЧНЫЙ | L182: 35 | O182: 2.7 | Q182: 0.2 | S182: 17.6 | U182: 82.9 | X182: 0.1 | Z182: 0 | AA182: 0 | AC182: 0.7 | AD182: 8.1 | AE182: 11.6 | AF182: 29.4 | AG182: 0.7
A183: КОМПОТ ИЗ СМЕСИ СУХОФРУКТОВ С ВИТАМИНОМ "С" | L183: 150 | O183: 0 | Q183: 0 | S183: 11.6 | U183: 46.5 | X183: 0 | Z183: 0 | AA183: 0 | AC183: 0 | AD183: 6.1 | AE183: 1.4 | AF183: 0 | AG183: 0 | AH183: к/к | AI183: к/к
A184: Итого за прием пищи: | O184: 17.55 | Q184: 19.1 | S184: 68.4 | U184: 515.4 | X184: 0.3 | Z184: 15.1 | AA184: 0.5 | AC184: 2.7 | AD184: 86.7 | AE184: 75.3 | AF184: 246 | AG184: 4
A185: Ужин
A186: ЖАРКОЕ ПО-ДОМАШНЕМУ | L186: 150 | O186: 8 | Q186: 11.3 | S186: 13.6 | U186: 189.1 | X186: 0.1 | Z186: 6.8 | AA186: 0 | AC186: 2.8 | AD186: 17.5 | AE186: 24.6 | AF186: 98.4 | AG186: 1.5 | AH186: 260 | AI186: 2008
A187: ХЛЕБ ПШЕНИЧНЫЙ | L187: 35 | O187: 2.7 | Q187: 0.2 | S187: 17.6 | U187: 82.9 | X187: 0.1 | Z187: 0 | AA187: 0 | AC187: 0.7 | AD187: 8.1 | AE187: 11.6 | AF187: 29.4 | AG187: 0.7
A188: ЧАЙ С МОЛОКОМ | L188: 150 | O188: 2.5 | Q188: 2.2 | S188: 11.1 | U188: 74.7 | X188: 0 | Z188: 0.5 | AA188: 0 | AC188: 0 | AD188: 95.3 | AE188: 11.5 | AF188: 66.2 | AG188: 0.3 | AH188: 394 | AI188: 2012
A189: ГРУША | L189: 108 | O189: 0.4 | Q189: 0.3 | S189: 10 | U189: 45.7 | X189: 0 | Z189: 4.9 | AA189: 0 | AC189: 0.3 | AD189: 18.5 | AE189: 11.7 | AF189: 15.6 | AG189: 1.9 | AI189: 2008
A190: Итого за прием пищи: | O190: 13.6 | Q190: 14 | S190: 52.3 | U190: 392.4 | X190: 0.2 | Z190: 12.2 | AA190: 0 | AC190: 3.8 | AD190: 139.4 | AE190: 59.4 | AF190: 209.6 | AG190: 4.4
A191: Всего за день: | O191: =O190+O184+O176+O172 -> 43.75 | Q191: =Q190+Q184+Q176+Q172 -> 49.4 | S191: =S190+S184+S176+S172 -> 209.5 | U191: =U190+U184+U176+U172 -> 1462.5 | X191: =X190+X184+X172 -> 0.7 | Z191: =Z190+Z184+Z176+Z172 -> 28.6 | AA191: =AA190+AA184 -> 0.5 | AC191: =AC190+AC184+AC172 -> 7.7 | AD191: =AD190+AD184+AD176+AD172 -> 506 | AE191: =AE190+AE184+AE176+AE172 -> 207.8 | AF191: =AF190+AF184+AF176+AF172 -> 724.4 | AG191: =AG190+AG184+AG176+AG172 -> 10.8
A192: 8 день
A193: Прием пищи, наименование блюда | L193: Масса порции | O193: Пищевые вещества | U193: Энергети-ческая ценность, ккал | X193: Витамины | AD193: Минеральные вещества | AH193: № рецеп-туры | AI193: Сборник рецептур
O194: Белки, г | Q194: Жиры, г | S194: Углеводы, г | X194: В1, мг | Z194: С, мг | AA194: А, мг | AC194: E, мг | AD194: Са, мг | AE194: Mg, мг | AF194: Р, мг | AG194: Fе, мг
A195: Завтрак
A196: ГРЕНКИ С СЫРОМ | L196: 35 | O196: 3.4 | Q196: 4.4 | S196: 21.8 | U196: 140 | X196: 0 | Z196: 0 | AA196: 0 | AC196: 0.1 | AD196: 14.5 | AE196: 5.3 | AF196: 29.9 | AG196: 0.4 | AH196: 117 | AI196: 2012
A197: ЧАЙ ПОЛУСЛАДКИЙ | L197: 150 | O197: 2.5 | Q197: 2.2 | S197: 11.1 | U197: 74.7 | X197: 0 | Z197: 0.5 | AA197: 0 | AC197: 0 | AD197: 95.3 | AE197: 11.5 | AF197: 66.2 | AG197: 0.3 | AH197: 394 | AI197: 2012
A198: КАША МАННАЯ МОЛОЧНАЯ ЖИДКАЯ | L198: 150 | O198: 4.8 | Q198: 6.4 | S198: 23.3 | U198: 170.4 | X198: 0 | Z198: 0.5 | AA198: 0 | AC198: 0.7 | AD198: 100.6 | AE198: 14.4 | AF198: 83.7 | AG198: 0.3 | AH198: 189 | AI198: 2008
A199: Итого за прием пищи: | O199: 10.7 | Q199: 13 | S199: 56.2 | U199: 385.1 | X199: 0 | Z199: 1 | AA199: 0 | AC199: 0.8 | AD199: 210.4 | AE199: 31.2 | AF199: 179.8 | AG199: 1
A200: II Завтрак
... 455 more rows
